bitfinex/quotes_ETHUSD_20240716
["timestamp","ask_amount","ask_price","bid_price","bid_amount"]
[1721144422766,6.15025,3464.7,3463.7,2.88707]
[1721144423097,2.88633,3464.6,3463.7,2.4445]
[1721144423491,2.88655,3464.4,3463.7,2.4445]
[1721144424287,2.88659,3464.3,3463.7,2.4445]
[1721144425561,2.88672,3464.2,3463.2,2.88744]
[1721144425760,2.88644,3464.5,3463.3,0.577503]
[1721144425970,2.88644,3464.5,3462.7,3.046]
[1721144425971,2.88664,3464.3,3463.4,2.88725]
[1721144426171,3.264,3464.7,3463.1,2.88758]
[1721144426172,2.88685,3464.0,3463.1,2.88758]
[1721144426388,2.88705,3463.8,3462.6,2.88794]
[1721144426556,2.88709,3463.7,3462.6,2.88794]
[1721144426755,2.88709,3463.7,3462.9,2.88775]
[1721144427198,2.88709,3463.7,3462.7,0.288794]
[1721144427384,2.88709,3463.7,3462.9,2.88774]
[1721144427973,3.264,3464.2,3462.9,2.88774]
[1721144427974,2.88697,3463.9,3462.9,2.88774]
[1721144428482,2.887,3463.8,3462.9,2.88774]
[1721144428808,2.887,3463.8,3463.0,0.6064434]
[1721144428979,2.88692,3463.9,3463.0,3.4941034]
[1721144429307,3.264,3464.7,3463.0,0.6064434]
[1721144429505,6.1503,3464.7,3463.6,2.8871]
[1721144429675,4.58504,3466.2,3463.9,2.88687]
[1721144429676,2.88617,3464.8,3463.9,2.88687]
[1721144429877,2.88625,3464.7,3463.9,2.88687]
[1721144430181,2.88625,3464.7,3463.2,2.88746]
[1721144430390,2.88617,3464.8,3463.9,2.88686]
[1721144430391,2.88618,3464.8,3463.9,2.88686]
[1721144430592,2.88631,3464.7,3464.0,0.577391]
[1721144430899,3.264,3465.2,3464.0,0.577391]
[1721144431114,2.88623,3464.8,3464.0,0.577391]
[1721144431282,2.88606,3465.0,3464.0,3.464211]
[1721144431601,2.88616,3464.9,3464.0,3.464211]
[1721144431807,2.88622,3464.8,3464.1,0.6351071]
[1721144431974,2.9488496,3464.8,3463.9,2.88691]
[1721144432171,0.0626296,3464.8,3463.3,6.046]
[1721144432418,0.0626296,3464.8,3464.5,2.88636]
[1721144432620,2.88527,3465.9,3465.0,2.88599]
[1721144432840,2.8851,3466.1,3465.1,2.8859]
[1721144433117,2.88517,3466.0,3465.1,2.8859]
[1721144433313,2.94960159,3466.0,3465.2,2.88583]
[1721144433516,0.06443159,3466.0,3465.3,2.8857]
[1721144433674,2.88493,3466.3,3465.2,2.88577]
[1721144433869,2.88493,3466.3,3465.3,3.4917349]
[1721144433870,2.8851,3466.1,3465.3,3.4917349]
[1721144434602,0.06448052,3466.0,3465.3,0.6060249]
[1721144434815,0.06448052,3466.0,3465.3,3.4917349]
[1721144435321,2.88493,3466.3,3465.3,3.4917349]
[1721144435620,3.264,3466.7,3465.3,3.4917349]
[1721144435621,0.06464209,3465.9,3465.5,2.88557]
[1721144435776,3.264,3466.7,3465.0,0.288599]
[1721144435777,3.264,3466.7,3465.9,2.88524]
[1721144436112,3.264,3466.7,3465.6,0.34915949]
[1721144436113,2.88426,3467.1,3466.2,2.88494]
[1721144436512,6.1482,3467.2,3466.2,2.88499]
[1721144436513,2.88434,3467.0,3466.2,2.88499]
[1721144437272,3.264,3467.2,3466.3,2.88487]
[1721144437474,2.88279,3468.9,3466.9,2.88439]
[1721144437773,1.5,3469.9,3467.2,2.88411]
[1721144437774,3.264,3468.6,3467.2,2.88411]
[1721144437974,2.88325,3468.3,3467.2,2.88411]
[1721144438176,2.88309,3468.5,3467.6,2.88382]
[1721144438382,2.88194,3469.9,3467.7,2.88373]
[1721144438383,2.88276,3468.9,3467.7,2.88373]
[1721144438587,2.88276,3468.9,3467.9,2.88356]
[1721144438830,6.14659,3469.1,3467.9,2.88356]
[1721144438831,2.88285,3468.8,3467.9,2.88356]
[1721144438983,2.88285,3468.8,3467.8,2.88359]
[1721144439695,2.88285,3468.8,3467.9,2.269]
[1721144439900,2.88285,3468.8,3467.9,5.15258]
[1721144440297,2.88308,3468.6,3467.9,2.269]
[1721144440704,2.88292,3468.7,3467.9,2.269]
[1721144440882,2.88284,3468.8,3467.9,2.784277]
[1721144441212,2.88242,3469.3,3468.1,2.4154]
[1721144441398,2.88227,3469.5,3468.3,2.88324]
[1721144441600,2.88235,3469.4,3468.5,2.88303]
[1721144441927,2.9454677,3469.4,3468.5,2.88303]
[1721144442076,2.9454677,3469.4,3468.3,2.88324]
[1721144442281,2.88257,3469.2,3468.1,2.4154]
[1721144442511,2.88243,3469.3,3468.3,2.88325]
[1721144442512,0.06313036,3469.1,3468.3,2.88325]
[1721144442817,2.88252,3469.2,3468.3,2.88325]
[1721144443112,0.06313036,3469.0,3468.3,2.88325]
[1721144443312,2.88252,3469.2,3468.2,2.88331]
[1721144443511,3.264,3469.6,3468.2,2.88331]
[1721144443512,0.06356639,3469.1,3468.5,2.3742]
[1721144443712,3.264,3469.6,3468.5,2.3742]
[1721144444014,2.88235,3469.4,3468.5,5.25726]
[1721144444837,0.06151825,3469.3,3468.3,0.81822]
[1721144445015,0.06151825,3469.3,3468.6,2.3912]
[1721144445328,2.88185,3470.0,3468.6,2.3912]
[1721144445493,2.88185,3470.0,3469.1,2.3912]
[1721144445751,0.06165562,3469.9,3469.1,5.27375]
[1721144445927,0.06165562,3469.9,3469.2,2.8825]
[1721144446125,2.9358714,3470.7,3469.4,2.3466]
[1721144446328,2.9358714,3470.7,3469.6,2.88216]
[1721144446329,0.05953895,3469.8,3469.6,2.88216]
[1721144446645,2.9358714,3470.7,3469.4,2.3466]
[1721144446646,2.9358714,3470.7,3469.7,2.88209]
[1721144446989,0.05953895,3470.6,3469.7,2.88209]
[1721144447193,0.05953895,3470.6,3469.8,2.88194]
[1721144447470,0.05953895,3470.6,3469.3,0.815635]
[1721144447471,0.05953895,3470.6,3470.5,2.3858]
[1721144447845,0.0546014,3470.7,3470.5,2.3858]
[1721144448049,0.05759919,3470.6,3470.5,2.3858]
[1721144448946,0.05791542,3470.6,3470.5,2.3858]
[1721144449148,0.05791542,3470.6,3470.5,5.26722]
[1721144449371,0.0546014,3470.7,3470.6,2.88134]
[1721144449800,3.0308481,3471.6,3470.6,2.88134]
[1721144449952,0.05807072,3470.7,3470.6,2.88134]
[1721144450157,0.05807072,3470.7,3470.6,5.76268]
[1721144450492,3.0308481,3471.6,3470.6,2.88134]
[1721144450654,2.88069,3471.4,3470.5,2.3858]
[1721144450858,0.05811769,3471.5,3470.6,0.23858]
[1721144451197,0.05811769,3471.4,3470.6,0.23858]
[1721144451341,0.1503181,3471.6,3470.6,0.23858]
[1721144451666,0.1503181,3471.6,3470.8,2.88116]
[1721144451840,0.05811769,3471.5,3470.8,2.88116]
[1721144452040,0.05811769,3471.5,3470.9,0.600106]
[1721144452474,2.93877769,3471.5,3470.9,0.600106]
[1721144452778,2.88073,3471.4,3470.6,0.23858]
[1721144452983,0.05815016,3471.4,3470.6,0.23858]
[1721144453217,2.88065,3471.5,3470.6,0.23858]
[1721144453339,2.88065,3471.5,3469.0,2.88259]
[1721144453340,2.88107,3471.0,3470.0,2.88179]
[1721144453546,2.88085,3471.2,3470.1,5.16045]
[1721144454197,2.88108,3471.0,3470.1,2.2787]
[1721144454351,2.93923546,3471.1,3470.1,2.2787]
[1721144454352,2.88113,3470.9,3470.1,2.2787]
[1721144454558,2.88118,3470.8,3470.1,2.2787]
[1721144454793,2.93948546,3470.8,3470.2,0.22787]
[1721144455655,2.88143,3470.5,3470.2,0.22787]
[1721144455900,2.88143,3470.5,3470.1,2.2787]
[1721144456199,0.05787643,3470.4,3469.6,2.3369]
[1721144456503,3.264,3470.8,3469.6,2.3369]
[1721144456504,2.88143,3470.5,3469.6,2.3369]
[1721144456792,2.88156,3470.4,3469.7,0.521914]
[1721144456957,2.93943643,3470.4,3469.7,0.521914]
[1721144457153,0.05787643,3470.4,3469.6,2.3369]
[1721144457361,2.88138,3470.6,3469.6,5.21906]
[1721144457669,0.0577952,3470.3,3469.6,5.21906]
[1721144457875,2.88138,3470.6,3469.6,5.21906]
[1721144458190,0.0577952,3470.2,3469.6,5.21906]
[1721144458410,0.0577952,3470.2,3469.7,0.810139]
[1721144458573,0.0577952,3470.1,3469.7,0.810139]
[1721144458778,2.88192,3469.9,3469.7,0.810139]
[1721144459084,2.88192,3469.9,3469.6,2.3369]
[1721144459463,0.057797,3469.8,3468.8,5.16703]
[1721144459653,0.057797,3469.8,3468.8,2.2842]
[1721144459860,2.88244,3469.3,3468.8,2.2842]
[1721144460096,3.321797,3469.8,3468.9,0.22842]
[1721144460097,6.203877,3469.8,3468.9,0.22842]
[1721144460299,0.05778433,3469.2,3468.9,0.22842]
[1721144460458,6.14608,3469.8,3468.9,0.22842]
[1721144460653,0.05758387,3469.1,3468.9,0.22842]
[1721144460865,2.88226,3469.5,3468.9,0.22842]
[1721144461067,2.88182,3470.1,3469.0,0.251262]
[1721144461068,2.88178,3470.1,3469.0,0.251262]
[1721144461369,2.88207,3469.8,3469.0,0.251262]
[1721144461568,2.8821,3469.7,3469.0,0.251262]
[1721144461809,2.88218,3469.6,3469.0,0.251262]
[1721144462010,2.88268,3469.0,3468.8,2.2842]
[1721144462169,2.88275,3468.9,3466.8,13.44847]
[1721144462373,2.88285,3468.8,3467.8,2.88362]
[1721144462814,2.88268,3469.0,3468.0,2.3689]
[1721144463020,2.8815,3470.5,3468.4,2.3689]
[1721144463021,3.264,3469.7,3468.4,2.3689]
[1721144463312,2.88125,3470.8,3468.1,3.859609]
[1721144463313,2.88172,3470.2,3468.8,5.4149]
[1721144463522,2.88168,3470.2,3469.4,2.3689]
[1721144463724,3.264,3471.0,3469.8,2.88197]
[1721144464014,3.264,3471.0,3469.9,0.288197]
[1721144464213,2.88109,3470.9,3469.5,2.3689]
[1721144464420,2.88165,3470.3,3469.5,2.3689]
[1721144464799,2.88181,3470.1,3468.7,2.3689]
[1721144465101,2.88209,3469.7,3468.7,2.3689]
[1721144465312,2.88218,3469.6,3468.8,0.53689]
[1721144465669,2.88264,3469.1,3468.8,0.53689]
[1721144465894,2.88159,3470.3,3468.1,3.237309]
[1721144465895,3.264,3469.5,3468.1,3.237309]
[1721144466095,3.264,3468.5,3467.2,2.4237]
[1721144466335,2.88325,3468.3,3467.5,2.8839]
[1721144466546,2.88334,3468.2,3467.2,5.30785]
[1721144466839,2.88348,3468.1,3467.2,2.4237]
[1721144467042,3.264,3469.0,3467.3,2.88404]
[1721144467043,2.88317,3468.4,3467.3,2.88404]
[1721144467337,2.88302,3468.6,3467.4,0.58843999]
[1721144467509,3.264,3469.0,3467.4,0.58843999]
[1721144467510,2.88292,3468.7,3467.6,2.88378]
[1721144467719,2.88292,3468.7,3467.7,0.05766134]
[1721144467938,2.88276,3468.9,3467.8,2.3412]
[1721144468118,2.88285,3468.8,3467.8,2.3412]
[1721144468436,2.88293,3468.7,3467.9,0.52826013]
[1721144468837,2.88276,3468.9,3468.0,2.88345]
[1721144469204,2.88276,3468.9,3468.1,2.88341]
[1721144469509,2.88284,3468.8,3467.9,3.41183013]
[1721144469708,2.88292,3468.7,3468.0,0.86367201]
[1721144470319,2.8831,3468.5,3468.0,0.86367201]
[1721144470509,9.30799,3469.9,3467.8,2.3412]
[1721144470510,2.88294,3468.7,3467.8,2.3412]
[1721144470861,2.88315,3468.5,3467.8,2.3412]
[1721144471015,2.88286,3468.8,3467.8,2.3412]
[1721144471205,3.426,3469.7,3467.8,2.3412]
[1721144471206,3.426,3469.7,3467.9,2.88352]
[1721144471405,2.88298,3468.7,3467.9,2.88352]
[1721144471631,2.883,3468.6,3468.0,0.810845]
[1721144471832,0.05281558,3468.6,3468.1,2.88341]
[1721144472034,2.8824,3469.4,3468.4,2.8831]
[1721144472250,2.88211,3469.7,3468.8,2.88277]
[1721144472451,0.0511729,3469.3,3468.8,2.88277]
[1721144472748,0.05117653,3469.2,3468.9,0.576576]
[1721144472952,2.88226,3469.5,3468.9,0.576576]
[1721144473160,0.05117653,3469.1,3468.9,0.576576]
[1721144473455,2.88251,3469.2,3468.5,2.442]
[1721144473749,3.426,3470.0,3468.5,2.442]
[1721144473750,2.88261,3469.1,3468.5,2.442]
[1721144473912,2.88284,3468.8,3468.5,2.442]
[1721144474115,0.05131432,3468.7,3468.5,2.442]
[1721144474323,2.88274,3469.0,3468.5,2.442]
[1721144474526,0.05131432,3468.9,3468.6,0.2442]
[1721144474717,2.88225,3469.6,3468.6,3.1272]
[1721144474718,2.88217,3469.6,3468.6,3.1272]
[1721144474938,0.0513107,3469.5,3468.8,2.88282]
[1721144475124,2.88207,3469.8,3468.9,2.2794]
[1721144475125,2.88202,3469.8,3468.9,2.2794]
[1721144475327,0.0513107,3469.7,3469.0,0.804507]
[1721144475529,2.88194,3469.9,3469.0,3.687117]
[1721144475730,0.05131797,3469.8,3469.0,3.687117]
[1721144476350,0.05131797,3469.8,3469.3,2.3886]
[1721144476555,2.88162,3470.3,3469.3,2.3886]
[1721144476556,2.88164,3470.3,3469.3,2.3886]
[1721144476757,0.05131797,3469.7,3469.4,0.527104]
[1721144476916,2.88135,3470.6,3469.6,2.88217]
[1721144477121,2.88118,3470.8,3469.6,2.88217]
[1721144477478,0.05139047,3470.5,3469.8,3.046]
[1721144477763,0.1503181,3471.6,3469.7,5.4852]
[1721144477764,2.88139,3470.6,3469.7,5.4852]
[1721144477933,0.05139047,3470.4,3469.8,3.54852]
[1721144478136,2.88093,3471.1,3470.2,2.88163]
[1721144478358,0.05162061,3471.0,3470.2,2.88163]
[1721144478654,0.05162061,3471.0,3470.3,5.36679]
[1721144478967,0.05162061,3470.9,3470.3,5.36679]
[1721144479183,2.88077,3471.3,3470.4,0.536679]
[1721144479460,0.05162061,3470.8,3470.4,0.536679]
[1721144479664,2.88094,3471.1,3470.4,0.536679]
[1721144479870,0.05162061,3470.7,3470.3,2.4852]
[1721144480037,2.8811,3470.9,3470.3,2.4852]
[1721144480234,0.05162061,3470.6,3470.3,2.4852]
[1721144480447,2.88092,3471.2,3470.4,0.536693]
[1721144480652,2.88081,3471.3,3470.4,0.536693]
[1721144480944,2.8809,3471.2,3470.4,0.536693]
[1721144481145,2.88069,3471.4,3470.4,0.536693]
[1721144481146,0.05162061,3471.1,3470.4,0.536693]
[1721144481450,2.8809,3471.2,3470.4,0.536693]
[1721144481655,0.1503181,3471.6,3470.5,0.5903453]
[1721144481656,0.05162061,3471.0,3470.5,0.5903453]
[1721144481857,0.1503181,3471.6,3470.3,2.4852]
[1721144481858,2.88144,3470.5,3470.3,2.4852]
[1721144482278,2.88165,3470.3,3469.8,2.94392]
[1721144482579,2.88171,3470.2,3469.8,2.3954]
[1721144482761,0.05167857,3470.2,3469.8,2.3954]
[1721144482939,2.88192,3469.9,3469.8,2.3954]
[1721144483276,2.93359857,3469.9,3469.8,2.3954]
[1721144483476,2.93359857,3469.9,3468.4,7.3]
[1721144483477,0.05167857,3469.9,3469.2,2.3954]
[1721144483664,3.47767857,3469.9,3468.6,2.3954]
[1721144483853,2.88319,3468.4,3467.9,2.3954]
[1721144484047,6.472,3469.9,3467.9,2.63494]
[1721144484048,2.88308,3468.6,3467.9,2.63494]
[1721144484274,2.88314,3468.5,3467.9,2.63494]
[1721144484461,0.05170939,3468.5,3467.9,2.63494]
[1721144484784,2.88239,3469.4,3467.9,2.63494]
[1721144484785,0.05152928,3468.4,3468.0,0.05765734]
[1721144485078,2.88225,3469.6,3468.4,2.88313]
[1721144485239,2.88198,3469.9,3468.5,1.120787]
[1721144485437,2.88198,3469.9,3468.2,2.3954]
[1721144485438,2.88289,3468.8,3468.2,2.3954]
[1721144486297,2.88252,3469.2,3468.2,2.3954]
[1721144486751,2.88286,3468.8,3468.2,2.3954]
[1721144486940,2.88286,3468.8,3467.4,5.80397]
[1721144486941,2.88375,3467.7,3467.5,2.3943]
[1721144487146,2.88301,3468.6,3467.5,2.3943]
[1721144487147,2.93497473,3467.6,3467.5,2.3943]
[1721144487340,0.05114473,3467.6,3467.5,2.3943]
[1721144487592,2.88359,3467.9,3467.5,2.3943]
[1721144487902,0.05103775,3467.6,3467.5,2.3943]
[1721144488041,2.88368,3467.8,3467.5,2.3943]
[1721144488241,2.93486775,3467.6,3467.5,2.3943]
[1721144488445,2.88383,3467.6,3467.5,2.3943]
[1721144488669,0.05094888,3467.6,3466.8,2.4196]
[1721144488876,2.88428,3467.1,3466.9,0.24196]
[1721144489264,0.05084191,3467.0,3466.9,0.24196]
[1721144489783,2.88366,3467.9,3466.9,0.24196]
[1721144490005,3.0,3468.9,3466.9,0.24196]
[1721144490285,2.8832,3468.4,3467.3,2.88407]
[1721144490476,2.88332,3468.3,3467.4,0.518177]
[1721144490670,2.88318,3468.4,3467.4,0.518177]
[1721144490987,3.426,3469.2,3467.4,0.518177]
[1721144490988,2.8827,3469.0,3467.5,5.4013668]
[1721144491187,2.88255,3469.2,3468.0,2.2977]
[1721144491488,2.88251,3469.2,3468.3,2.8832]
[1721144491651,2.88251,3469.2,3468.4,0.28832]
[1721144492059,2.88234,3469.4,3468.4,0.28832]
[1721144492352,2.88183,3470.1,3468.4,0.28832]
[1721144492353,2.8823,3469.5,3468.4,3.17149]
[1721144492692,2.88202,3469.8,3468.6,5.1808]
[1721144492693,2.88224,3469.6,3468.6,5.1808]
[1721144492865,2.882,3469.9,3468.7,2.88292]
[1721144493069,2.882,3469.9,3468.6,5.3438]
[1721144493070,2.88202,3469.8,3468.8,0.822672]
[1721144493263,2.88194,3469.9,3468.9,2.88269]
[1721144493587,2.88194,3469.9,3468.8,0.822672]
[1721144493902,2.88224,3469.6,3468.8,0.822672]
[1721144494205,2.88185,3470.0,3468.8,3.705502]
[1721144494343,2.88185,3470.0,3468.9,0.6003302]
[1721144494344,2.88209,3469.8,3468.9,0.6003302]
[1721144494547,2.88211,3469.7,3468.9,0.6003302]
[1721144494952,2.88224,3469.6,3468.6,2.2978]
[1721144495573,2.88234,3469.4,3468.6,2.2978]
[1721144495975,2.88229,3469.5,3468.6,2.2978]
[1721144496187,2.88217,3469.6,3468.6,2.2978]
[1721144496389,2.88227,3469.5,3468.6,2.2978]
[1721144496609,2.88169,3470.2,3468.7,0.57573355]
[1721144496757,1.50201545,3471.2,3469.0,2.3068]
[1721144496758,3.426,3471.2,3469.0,2.3068]
[1721144496956,2.88126,3470.7,3469.2,2.8825]
[1721144497155,2.8817,3470.2,3469.2,2.88245]
[1721144497361,2.8817,3470.2,3469.3,3.689541]
[1721144497558,0.05124594,3470.1,3469.3,0.807191]
[1721144497869,0.05124594,3470.1,3469.0,2.3068]
[1721144497870,2.8821,3469.7,3469.1,3.0]
[1721144498058,2.8821,3469.7,3469.0,2.3068]
[1721144498259,2.88227,3469.5,3469.0,2.3068]
[1721144498679,2.88218,3469.6,3469.0,2.3068]
[1721144498877,0.05126768,3469.4,3469.0,2.3068]
[1721144499099,2.93355865,3469.5,3469.1,0.23068]
[1721144499389,2.93355865,3469.5,3469.0,2.3068]
[1721144499390,2.88243,3469.3,3469.0,2.3068]
[1721144499688,2.93368865,3469.4,3469.0,2.3068]
[1721144499986,2.88243,3469.3,3469.0,2.3068]
[1721144500190,2.93358933,3469.3,3469.0,2.3068]
[1721144501496,2.93358933,3469.3,3469.0,2.5892888]
[1721144501789,0.05115933,3469.3,3469.0,2.5892888]
[1721144501999,2.88238,3469.4,3469.0,2.5892888]
[1721144502407,0.05108612,3469.3,3469.0,2.5892888]
[1721144502574,2.8824,3469.4,3469.0,2.5892888]
[1721144502775,0.05105823,3469.3,3469.0,2.5892888]
[1721144503024,0.05105823,3469.3,3469.1,0.25892888]
[1721144503309,2.88162,3470.3,3469.3,2.88241]
[1721144503679,0.05111081,3470.2,3469.3,2.88241]
[1721144504076,0.05111081,3470.2,3469.5,2.3552]
[1721144504288,2.88152,3470.4,3469.6,3.405931]
[1721144504475,2.88127,3470.7,3469.6,3.405931]
[1721144504476,0.05111081,3470.1,3469.6,3.405931]
[1721144504676,4.5344796,3471.6,3470.1,2.88175]
[1721144504999,2.88097,3471.1,3470.2,2.4681]
[1721144505513,0.05122314,3471.0,3470.2,2.4681]
[1721144505879,2.88153,3470.4,3470.2,2.4681]
[1721144506075,2.88136,3470.6,3470.2,2.4681]
[1721144506297,0.05122314,3470.3,3470.2,2.4681]
[1721144506810,2.88143,3470.5,3470.2,2.4681]
[1721144507119,0.05122314,3470.3,3470.2,2.4681]
[1721144507316,2.8813,3470.7,3469.6,2.2839]
[1721144507479,0.05122314,3470.3,3469.6,2.2839]
[1721144507815,2.88176,3470.1,3469.6,2.51229]
[1721144508310,2.88193,3469.9,3469.6,2.2839]
[1721144508519,0.05141518,3470.0,3469.6,2.2839]
[1721144508700,2.88176,3470.1,3469.6,2.2839]
[1721144508907,0.05141518,3469.9,3469.6,2.2839]
[1721144509212,2.88142,3470.6,3469.6,2.2839]
[1721144509415,0.05138802,3469.8,3469.7,0.516621]
[1721144509717,2.88127,3470.7,3469.8,2.88199]
[1721144509920,3.1503181,3471.6,3469.8,2.88199]
[1721144509921,2.88135,3470.6,3469.8,2.88199]
[1721144510084,2.93273802,3470.6,3469.8,2.88199]
[1721144510954,2.93273802,3470.6,3469.7,3.398641]
[1721144511077,2.93273802,3470.6,3469.8,3.4502541]
[1721144511279,2.93272802,3470.6,3469.8,3.4502541]
[1721144512038,0.05138802,3470.6,3469.8,3.4502541]
[1721144513399,2.93274802,3470.6,3469.8,3.4502541]
[1721144513600,0.05138802,3470.6,3469.8,3.4502541]
[1721144513897,2.88165,3470.3,3469.8,0.5682541]
[1721144514101,2.88125,3470.8,3469.6,2.2839]
[1721144514337,0.05140975,3470.2,3469.7,2.88202]
[1721144514650,2.8814,3470.6,3469.7,2.88202]
[1721144514832,2.88185,3470.0,3469.6,2.2839]
[1721144515550,0.05146772,3469.9,3469.6,2.2839]
[1721144516140,0.05146772,3469.9,3469.6,2.51229]
[1721144516362,0.05146772,3469.9,3469.6,5.39439]
[1721144516648,2.88127,3470.7,3469.8,2.88201]
[1721144517001,0.05142605,3470.6,3469.9,2.88191]
[1721144517210,0.05142605,3470.6,3470.0,0.576392]
[1721144517408,0.05142605,3470.6,3469.6,5.39444]
[1721144517409,2.93279605,3470.6,3469.7,2.88202]
[1721144517641,0.05142605,3470.6,3469.7,2.88202]
[1721144517838,2.88143,3470.5,3469.7,2.88202]
[1721144518440,0.05142605,3470.4,3469.7,2.88202]
[1721144518840,2.88143,3470.5,3469.7,2.88202]
[1721144519035,2.88143,3470.5,3469.8,0.539431]
[1721144519367,0.05142605,3470.4,3469.8,0.539431]
[1721144519713,2.88127,3470.7,3469.8,0.539431]
[1721144520022,2.8811,3470.9,3470.1,2.471]
[1721144520230,0.05144418,3470.6,3470.2,0.823468]
[1721144520408,2.8811,3470.9,3470.2,0.823468]
[1721144520612,0.0514478,3470.5,3470.2,0.823468]
[1721144520811,2.88124,3470.8,3470.2,0.823468]
[1721144521048,0.0514478,3470.4,3470.1,2.471]
[1721144521258,2.88128,3470.7,3470.1,2.471]
[1721144521550,2.88193,3469.9,3469.5,2.3057]
[1721144521921,0.05148041,3469.8,3469.5,2.3057]
[1721144522255,2.93350041,3469.8,3469.5,2.3057]
[1721144522582,0.05148041,3469.8,3469.5,2.3057]
[1721144523413,2.93352041,3469.8,3469.5,2.3057]
[1721144523813,2.93352041,3469.8,3467.6,2.88381]
[1721144523814,2.88213,3469.7,3468.7,2.3422]
[1721144524052,0.05142063,3469.7,3469.1,2.88256]
[1721144524251,0.05142063,3469.7,3469.2,2.3422]
[1721144524456,2.88169,3470.2,3469.3,2.8824]
[1721144524626,0.05123765,3469.6,3469.3,2.8824]
[1721144524825,3.258,3470.9,3469.6,2.88216]
[1721144525135,2.88133,3470.7,3469.8,2.2778]
[1721144525341,2.88143,3470.5,3469.8,2.2778]
[1721144526054,2.88133,3470.7,3469.8,2.2778]
[1721144526055,2.88097,3471.1,3469.8,2.2778]
[1721144526254,2.88082,3471.3,3470.3,2.88153]
[1721144526452,0.1503181,3471.6,3470.4,2.3442]
[1721144526614,2.88077,3471.3,3470.5,0.522573]
[1721144527222,3.0308881,3471.6,3470.5,0.522573]
[1721144527422,0.1503181,3471.6,3470.5,3.403993]
[1721144527839,0.1503181,3471.6,3470.6,2.88127]
[1721144528129,2.88061,3471.5,3470.6,2.88127]
[1721144528329,0.1503181,3471.6,3470.7,3.7441843]
[1721144528533,3.0308281,3471.6,3470.7,3.7441843]
[1721144529024,3.0308281,3471.6,3470.7,0.8629543]
[1721144529225,3.0308281,3471.6,3470.7,3.7442043]
[1721144529448,0.1503181,3471.6,3470.9,2.2515]
[1721144529653,0.1503181,3471.6,3471.0,0.31144543]
[1721144529867,0.1503181,3471.6,3471.0,3.19242543]
[1721144530657,1.80395986,3473.3,3471.7,2.4821]
[1721144530856,1.80395986,3473.3,3472.2,2.87998]
[1721144530857,2.87924,3473.2,3472.2,2.87998]
[1721144531062,4.76495988,3474.0,3471.7,2.4821]
[1721144531063,2.87986,3472.4,3471.7,2.4821]
[1721144531222,2.87964,3472.7,3471.7,2.4821]
[1721144531428,3.258,3473.1,3471.7,2.4821]
[1721144531429,4.54789381,3473.9,3472.2,2.88001]
[1721144531753,3.258,3473.9,3472.3,2.8799]
[1721144531967,0.04673993,3473.8,3472.6,2.87961]
[1721144532129,2.87937,3473.0,3472.4,2.3494]
[1721144532321,2.87937,3473.0,3471.7,3.434272]
[1721144532322,2.87944,3472.9,3471.8,2.3494]
[1721144532526,2.87944,3472.9,3471.8,2.6379672]
[1721144532527,2.87961,3472.7,3471.8,2.6379672]
[1721144532760,2.87968,3472.6,3471.8,2.3494]
[1721144533056,2.87987,3472.4,3471.8,2.3494]
[1721144533422,0.04716819,3472.3,3471.8,2.3494]
[1721144533625,0.04716819,3472.3,3471.1,2.2561]
[1721144533626,2.8802,3472.0,3471.1,2.2561]
[1721144534027,0.04723353,3471.9,3471.1,5.137]
[1721144534226,0.04723353,3471.9,3471.2,0.48573413]
[1721144535455,0.04723353,3471.9,3471.4,2.88064]
[1721144535632,2.87964,3472.7,3471.7,2.88041]
[1721144535832,3.0,3473.2,3472.0,2.88018]
[1721144535833,2.87936,3473.0,3472.0,2.88018]
[1721144536048,0.04702305,3472.6,3472.3,2.87985]
[1721144536251,0.00366,3474.0,3471.3,2.88076]
[1721144536252,0.00366,3474.0,3471.7,4.546]
[1721144536425,0.00366,3474.0,3471.3,2.88076]
[1721144536426,0.00366,3474.0,3473.9,2.32]
[1721144536624,0.00366,3474.0,3473.9,8.0772]
[1721144536968,0.00366,3474.0,3473.9,2.32]
[1721144537254,2.878,3474.7,3473.9,2.32]
[1721144537475,3.0279681,3475.1,3474.0,2.87852]
[1721144537476,0.1503181,3475.1,3474.0,2.87852]
[1721144537627,0.1503181,3475.1,3474.1,0.05755878]
[1721144537823,0.1503181,3475.1,3473.9,2.32]
[1721144537824,2.8778,3474.9,3473.9,2.32]
[1721144538023,3.258,3474.7,3473.2,2.333]
[1721144538230,2.87854,3474.0,3473.2,2.333]
[1721144538465,3.417,3474.7,3473.2,2.333]
[1721144538770,2.87837,3474.2,3473.2,2.333]
[1721144538927,3.417,3474.7,3472.5,2.2693]
[1721144539125,0.55,3474.6,3472.5,2.2693]
[1721144539425,3.417,3474.7,3472.5,2.2693]
[1721144539426,2.87855,3474.0,3472.6,2.87966]
[1721144539758,1.7918181,3475.1,3471.9,3.0]
[1721144539759,2.87804,3474.6,3473.3,2.87909]
[1721144540060,0.1503181,3475.1,3473.6,2.87881]
[1721144540264,0.1503181,3475.1,3473.7,2.4413]
[1721144540478,0.1503181,3475.1,3474.3,2.87823]
[1721144540659,0.1503181,3475.1,3473.8,2.87867]
[1721144540865,0.1503181,3475.1,3473.9,0.531997]
[1721144541060,3.0279781,3475.1,3473.7,2.4413]
[1721144541307,0.1503181,3475.1,3473.7,2.4413]
[1721144541461,2.87789,3474.8,3473.7,2.4413]
[1721144541797,0.1503181,3475.1,3473.7,2.4413]
[1721144542011,2.87804,3474.6,3473.7,2.4413]
[1721144542157,0.1503181,3475.1,3473.1,2.4494]
[1721144542363,2.87862,3473.9,3473.1,2.4494]
[1721144542590,2.87855,3474.0,3473.1,2.4494]